[Event "Late-Titled-Tuesday-Blitz-April-30-2024"]
[Site "Chess.com"]
[Date "2024.04.30"]
[Round "8"]
[White "Godzillator"]
[Black "Navyblue1"]
[Result "0-1"]
[WhiteElo "2377"]
[BlackElo "2243"]
[TimeControl "180+1"]
[EndTime "15:28:39 PDT"]
[Termination "Navyblue1 won by checkmate"]

1. e4 {[%clk 0:03:00.9]} 1... c5 {[%clk 0:02:59.5]} 2. Nc3 {[%clk 0:02:59.8]}
2... d6 {[%clk 0:02:56.3]} 3. g3 {[%clk 0:03:00.3]} 3... g6 {[%clk 0:02:55.9]}
4. Bg2 {[%clk 0:03:00.8]} 4... Bg7 {[%clk 0:02:56.2]} 5. Nge2 {[%clk 0:03:01.2]}
5... Nc6 {[%clk 0:02:55.8]} 6. O-O {[%clk 0:03:01.9]} 6... e6 {[%clk 0:02:54.8]}
7. f4 {[%clk 0:03:02.2]} 7... Nge7 {[%clk 0:02:54.9]} 8. d3 {[%clk 0:03:01.4]}
8... O-O {[%clk 0:02:55.5]} 9. Kh1 {[%clk 0:02:59.9]} 9... Rb8 {[%clk 0:02:56]}
10. Be3 {[%clk 0:02:59.8]} 10... b5 {[%clk 0:02:56.3]} 11. Qd2 {[%clk 0:02:58]}
11... b4 {[%clk 0:02:53.4]} 12. Nd1 {[%clk 0:02:57.8]} 12... a5 {[%clk
0:02:52.6]} 13. g4 {[%clk 0:02:56.3]} 13... f5 {[%clk 0:02:16.8]} 14. gxf5
{[%clk 0:02:51]} 14... gxf5 {[%clk 0:02:14.6]} 15. exf5 {[%clk 0:02:50.1]} 15...
exf5 {[%clk 0:02:10.5]} 16. Ng3 {[%clk 0:02:47.5]} 16... Qe8 {[%clk 0:01:47.7]}
17. Rg1 {[%clk 0:02:45.7]} 17... Qf7 {[%clk 0:01:43.2]} 18. Bf3 {[%clk
0:02:45.3]} 18... Kh8 {[%clk 0:01:38.4]} 19. Nh5 {[%clk 0:02:44.6]} 19... Rg8
{[%clk 0:01:37.2]} 20. Nxg7 {[%clk 0:02:44.2]} 20... Rxg7 {[%clk 0:01:36.8]} 21.
Nf2 {[%clk 0:02:43.9]} 21... Be6 {[%clk 0:01:34.2]} 22. Rxg7 {[%clk 0:02:42.5]}
22... Qxg7 {[%clk 0:01:32.9]} 23. Re1 {[%clk 0:02:35.3]} 23... Bd5 {[%clk
0:01:28.4]} 24. Bxd5 {[%clk 0:02:27.6]} 24... Nxd5 {[%clk 0:01:29.3]} 25. Nh3
{[%clk 0:02:24.8]} 25... h6 {[%clk 0:01:15.7]} 26. b3 {[%clk 0:02:02.4]} 26...
Rg8 {[%clk 0:01:04.9]} 27. Rg1 {[%clk 0:02:01.7]} 27... Qf6 {[%clk 0:00:57.6]}
28. Rxg8+ {[%clk 0:02:00.4]} 28... Kxg8 {[%clk 0:00:53]} 29. Qg2+ {[%clk
0:02:00.4]} 29... Kh7 {[%clk 0:00:52.9]} 30. Qxd5 {[%clk 0:02:00.3]} 30... Qa1+
{[%clk 0:00:52.5]} 31. Bg1 {[%clk 0:01:56.3]} 31... Nd4 {[%clk 0:00:50.1]} 32.
Qf7+ {[%clk 0:01:48.7]} 32... Kh8 {[%clk 0:00:49.1]} 33. Qf8+ {[%clk 0:01:44.5]}
33... Kh7 {[%clk 0:00:49.4]} 34. Qxd6 {[%clk 0:01:43.6]} 34... Qf1 {[%clk
0:00:43.3]} 35. Qd5 {[%clk 0:01:36.9]} 35... Qxh3 {[%clk 0:00:39.4]} 36. Bxd4
{[%clk 0:01:34.8]} 36... cxd4 {[%clk 0:00:38.6]} 37. Qg2 {[%clk 0:00:46.7]}
37... Qe3 {[%clk 0:00:18.7]} 38. h3 {[%clk 0:00:46.2]} 38... Qxf4 {[%clk
0:00:17.2]} 39. Qb7+ {[%clk 0:00:45]} 39... Kg6 {[%clk 0:00:17.1]} 40. Qa6+
{[%clk 0:00:44.4]} 40... Kh5 {[%clk 0:00:16.9]} 41. Qf6 {[%clk 0:00:38.1]} 41...
Qf1+ {[%clk 0:00:16.6]} 42. Kh2 {[%clk 0:00:38.2]} 42... Qf2+ {[%clk 0:00:16.9]}
43. Kh1 {[%clk 0:00:38.6]} 43... Qf3+ {[%clk 0:00:17.2]} 44. Kg1 {[%clk
0:00:38.4]} 44... Qg3+ {[%clk 0:00:16.9]} 45. Kf1 {[%clk 0:00:38.4]} 45... Qxh3+
{[%clk 0:00:17.1]} 46. Kf2 {[%clk 0:00:37.9]} 46... Qh4+ {[%clk 0:00:16.8]} 47.
Qxh4+ {[%clk 0:00:37]} 47... Kxh4 {[%clk 0:00:16.6]} 48. Kf3 {[%clk 0:00:37.9]}
48... Kg5 {[%clk 0:00:16.7]} 49. c4 {[%clk 0:00:34.5]} 49... dxc3 {[%clk
0:00:16.2]} 50. d4 {[%clk 0:00:34.9]} 50... c2 {[%clk 0:00:16.4]} 51. Ke3 {[%clk
0:00:35.1]} 51... f4+ {[%clk 0:00:16.2]} 52. Kd2 {[%clk 0:00:34.9]} 52... Kf5
{[%clk 0:00:16.5]} 53. Kxc2 {[%clk 0:00:35.1]} 53... Ke4 {[%clk 0:00:17.1]} 54.
d5 {[%clk 0:00:32.3]} 54... Kxd5 {[%clk 0:00:17.7]} 55. Kd3 {[%clk 0:00:32.5]}
55... h5 {[%clk 0:00:18.3]} 56. Ke2 {[%clk 0:00:32.5]} 56... Ke4 {[%clk
0:00:18.3]} 57. Kf2 {[%clk 0:00:32.7]} 57... h4 {[%clk 0:00:19.1]} 58. Kg2
{[%clk 0:00:33.1]} 58... Ke3 {[%clk 0:00:19.5]} 59. Kh2 {[%clk 0:00:32.5]} 59...
Ke2 {[%clk 0:00:19.8]} 60. Kh3 {[%clk 0:00:32.7]} 60... f3 {[%clk 0:00:20]} 61.
Kxh4 {[%clk 0:00:32.9]} 61... f2 {[%clk 0:00:20.7]} 62. Kg3 {[%clk 0:00:33.4]}
62... f1=Q {[%clk 0:00:21.1]} 63. a4 {[%clk 0:00:33.8]} 63... Qf8 {[%clk
0:00:21]} 64. Kg4 {[%clk 0:00:32.3]} 64... Ke3 {[%clk 0:00:20.8]} 65. Kg5 {[%clk
0:00:32.4]} 65... Ke4 {[%clk 0:00:21.3]} 66. Kg6 {[%clk 0:00:32.9]} 66... Ke5
{[%clk 0:00:21.7]} 67. Kh7 {[%clk 0:00:33.2]} 67... Qf1 {[%clk 0:00:20.5]} 68.
Kg6 {[%clk 0:00:33.2]} 68... Ke6 {[%clk 0:00:20.8]} 69. Kg5 {[%clk 0:00:33.2]}
69... Qf5+ {[%clk 0:00:20.3]} 70. Kh6 {[%clk 0:00:33.5]} 70... Qg4 {[%clk
0:00:20.7]} 71. Kh7 {[%clk 0:00:33.6]} 71... Kf7 {[%clk 0:00:21.4]} 72. Kh8
{[%clk 0:00:34]} 72... Qg7# {[%clk 0:00:21.4]} 0-1

[Event "Late-Titled-Tuesday-Blitz-April-30-2024"]
[Site "Chess.com"]
[Date "2024.04.30"]
[Round "8"]
[White "Sinquefield"]
[Black "Alex_Sahakyan2006"]
[Result "0-1"]
[WhiteElo "2532"]
[BlackElo "2825"]
[TimeControl "180+1"]
[EndTime "15:28:45 PDT"]
[Termination "Alex_Sahakyan2006 won by resignation"]

1. e4 {[%clk 0:03:00.9]} 1... c6 {[%clk 0:03:00.2]} 2. d4 {[%clk 0:03:00.5]}
2... d5 {[%clk 0:03:00.7]} 3. exd5 {[%clk 0:03:01.4]} 3... cxd5 {[%clk
0:03:01.1]} 4. Bd3 {[%clk 0:03:00.6]} 4... Nc6 {[%clk 0:03:01.6]} 5. c3 {[%clk
0:03:01]} 5... Nf6 {[%clk 0:03:00.8]} 6. Bf4 {[%clk 0:02:59.3]} 6... g6 {[%clk
0:02:56]} 7. Qc2 {[%clk 0:02:56.2]} 7... Bg7 {[%clk 0:02:55.2]} 8. Nf3 {[%clk
0:02:56]} 8... Bg4 {[%clk 0:02:53]} 9. Nbd2 {[%clk 0:02:50.2]} 9... O-O {[%clk
0:02:52]} 10. h3 {[%clk 0:02:50.2]} 10... Bxf3 {[%clk 0:02:51.7]} 11. Nxf3
{[%clk 0:02:49.9]} 11... Rc8 {[%clk 0:02:52.2]} 12. Qe2 {[%clk 0:02:50.1]} 12...
Re8 {[%clk 0:02:49.4]} 13. O-O {[%clk 0:02:49.7]} 13... Nd7 {[%clk 0:02:49.1]}
14. Ne5 {[%clk 0:02:37.9]} 14... Ncxe5 {[%clk 0:02:45.6]} 15. dxe5 {[%clk
0:02:37.8]} 15... Nc5 {[%clk 0:02:45.9]} 16. Bc2 {[%clk 0:02:36.7]} 16... Qb6
{[%clk 0:02:44.3]} 17. Rab1 {[%clk 0:02:33.5]} 17... Ne6 {[%clk 0:02:44]} 18.
Be3 {[%clk 0:02:30.1]} 18... d4 {[%clk 0:02:43.8]} 19. cxd4 {[%clk 0:02:24.5]}
19... Nxd4 {[%clk 0:02:43.9]} 20. Bxd4 {[%clk 0:02:19]} 20... Qxd4 {[%clk
0:02:44.2]} 21. Rfe1 {[%clk 0:02:14.9]} 21... e6 {[%clk 0:02:32.5]} 22. Bb3
{[%clk 0:02:11.6]} 22... Rc5 {[%clk 0:02:30.2]} 23. Qf3 {[%clk 0:01:47.1]} 23...
Rxe5 {[%clk 0:02:28.7]} 24. Rxe5 {[%clk 0:01:43.6]} 24... Bxe5 {[%clk
0:02:24.3]} 25. Qxb7 {[%clk 0:01:43.6]} 25... Qc5 {[%clk 0:02:09.8]} 26. Qd7
{[%clk 0:01:11.6]} 26... Rb8 {[%clk 0:02:05.6]} 27. Rd1 {[%clk 0:00:50]} 27...
Bxb2 {[%clk 0:02:00.2]} 28. g3 {[%clk 0:00:36.4]} 28... Qf5 {[%clk 0:01:43.3]}
29. Kg2 {[%clk 0:00:29.2]} 29... a5 {[%clk 0:01:39.1]} 30. Rd3 {[%clk
0:00:24.7]} 30... Rf8 {[%clk 0:01:14]} 31. Rf3 {[%clk 0:00:23.2]} 31... Qe4
{[%clk 0:01:14.4]} 32. Qd2 {[%clk 0:00:16.7]} 32... Bd4 {[%clk 0:00:55.4]} 33.
Qxa5 {[%clk 0:00:16.8]} 33... Rc8 {[%clk 0:00:53.2]} 34. Qd2 {[%clk 0:00:16.6]}
34... Bg7 {[%clk 0:00:35]} 35. Qf4 {[%clk 0:00:16.7]} 35... Qb7 {[%clk
0:00:35.3]} 36. h4 {[%clk 0:00:16.3]} 36... h5 {[%clk 0:00:35.3]} 37. g4 {[%clk
0:00:16.2]} 37... hxg4 {[%clk 0:00:33.3]} 38. Qxg4 {[%clk 0:00:17.1]} 38... Rc5
{[%clk 0:00:33.6]} 39. Kh3 {[%clk 0:00:13.1]} 39... Rf5 {[%clk 0:00:28.9]} 40.
Kg3 {[%clk 0:00:11.7]} 40... Be5+ {[%clk 0:00:28.9]} 41. Kg2 {[%clk 0:00:12.2]}
41... Rf4 {[%clk 0:00:26.7]} 42. Qg3 {[%clk 0:00:11.5]} 42... Qe4 {[%clk
0:00:27.1]} 43. Bd1 {[%clk 0:00:09]} 43... Rg4 {[%clk 0:00:27.1]} 44. Kf1 {[%clk
0:00:07.5]} 44... Rxg3 {[%clk 0:00:26.8]} 45. fxg3 {[%clk 0:00:07.9]} 45... Bd4
{[%clk 0:00:25.5]} 46. Be2 {[%clk 0:00:07.8]} 46... Qb1+ {[%clk 0:00:25.1]} 47.
Kg2 {[%clk 0:00:06.4]} 47... Qxa2 {[%clk 0:00:25.2]} 48. Kf1 {[%clk 0:00:04.4]}
48... Qb1+ {[%clk 0:00:25.4]} 49. Kg2 {[%clk 0:00:04.9]} 49... Qg1+ {[%clk
0:00:25.6]} 50. Kh3 {[%clk 0:00:05.2]} 50... f5 {[%clk 0:00:24.5]} 51. Rf1
{[%clk 0:00:03.9]} 51... Qe3 {[%clk 0:00:24.7]} 52. Bf3 {[%clk 0:00:04.4]} 52...
Be5 {[%clk 0:00:23.8]} 53. Kg2 {[%clk 0:00:04.1]} 53... Qd2+ {[%clk 0:00:24.1]}
54. Rf2 {[%clk 0:00:04.6]} 54... Qe1 {[%clk 0:00:23.6]} 55. Be2 {[%clk 0:00:03]}
55... Bd4 {[%clk 0:00:23.2]} 0-1

[Event "Late-Titled-Tuesday-Blitz-April-30-2024"]
[Site "Chess.com"]
[Date "2024.04.30"]
[Round "8"]
[White "zacachess"]
[Black "karinachess1"]
[Result "0-1"]
[WhiteElo "2364"]
[BlackElo "2605"]
[TimeControl "180+1"]
[EndTime "15:28:46 PDT"]
[Termination "karinachess1 won on time"]

1. e4 {[%clk 0:02:59.8]} 1... e5 {[%clk 0:03:00]} 2. Nf3 {[%clk 0:02:59.3]} 2...
Nc6 {[%clk 0:03:00.4]} 3. d4 {[%clk 0:02:59.5]} 3... exd4 {[%clk 0:03:00.4]} 4.
Nxd4 {[%clk 0:03:00.4]} 4... Bc5 {[%clk 0:03:00.8]} 5. Be3 {[%clk 0:02:59.8]}
5... Qf6 {[%clk 0:03:00.4]} 6. c3 {[%clk 0:02:59.7]} 6... Nge7 {[%clk
0:03:00.7]} 7. g3 {[%clk 0:02:59.6]} 7... d5 {[%clk 0:02:56.9]} 8. Bg2 {[%clk
0:02:59.2]} 8... dxe4 {[%clk 0:02:55.3]} 9. Nd2 {[%clk 0:02:59.7]} 9... Qg6
{[%clk 0:02:41.4]} 10. Nxe4 {[%clk 0:02:55.8]} 10... Bb6 {[%clk 0:02:39.2]} 11.
O-O {[%clk 0:02:46.5]} 11... Nxd4 {[%clk 0:02:34.3]} 12. Bxd4 {[%clk 0:02:44.8]}
12... O-O {[%clk 0:02:32.4]} 13. Bxb6 {[%clk 0:02:34.5]} 13... Qxb6 {[%clk
0:02:26.9]} 14. Qb3 {[%clk 0:02:29.2]} 14... Be6 {[%clk 0:02:25.3]} 15. Qxb6
{[%clk 0:02:25.3]} 15... axb6 {[%clk 0:02:26.2]} 16. a3 {[%clk 0:02:25.5]} 16...
Bb3 {[%clk 0:02:10.9]} 17. Nd2 {[%clk 0:02:18.6]} 17... Bd5 {[%clk 0:02:11.2]}
18. Rad1 {[%clk 0:02:09.5]} 18... Bxg2 {[%clk 0:01:56.5]} 19. Kxg2 {[%clk
0:02:10.4]} 19... Rfd8 {[%clk 0:01:56.3]} 20. Nc4 {[%clk 0:01:45.8]} 20... Nc6
{[%clk 0:01:52.9]} 21. f4 {[%clk 0:01:35]} 21... f6 {[%clk 0:01:48.9]} 22. Kf3
{[%clk 0:01:33.9]} 22... Kf7 {[%clk 0:01:48.4]} 23. Ne3 {[%clk 0:01:28.3]} 23...
Ne7 {[%clk 0:01:44.5]} 24. Rxd8 {[%clk 0:01:24.9]} 24... Rxd8 {[%clk 0:01:45.4]}
25. Rd1 {[%clk 0:01:25.3]} 25... Rxd1 {[%clk 0:01:45.5]} 26. Nxd1 {[%clk
0:01:26.2]} 26... Ke6 {[%clk 0:01:44.6]} 27. Ne3 {[%clk 0:01:23.6]} 27... f5
{[%clk 0:01:42.9]} 28. Ke2 {[%clk 0:01:19.2]} 28... g6 {[%clk 0:01:37]} 29. Kd3
{[%clk 0:01:18.4]} 29... Nc6 {[%clk 0:01:30.7]} 30. c4 {[%clk 0:01:14.2]} 30...
Ne7 {[%clk 0:01:20.2]} 31. b4 {[%clk 0:01:11.5]} 31... c6 {[%clk 0:01:20.6]} 32.
Kd4 {[%clk 0:01:08.3]} 32... Nc8 {[%clk 0:01:19]} 33. a4 {[%clk 0:01:03.8]}
33... Nd6 {[%clk 0:01:16.5]} 34. b5 {[%clk 0:00:56.3]} 34... Ne4 {[%clk
0:01:11.2]} 35. Nd1 {[%clk 0:00:36.5]} 35... Nc5 {[%clk 0:01:00.9]} 36. Nc3
{[%clk 0:00:36.4]} 36... Kd6 {[%clk 0:01:00.7]} 37. Ke3 {[%clk 0:00:22]} 37...
Ne6 {[%clk 0:00:58.8]} 38. Kd3 {[%clk 0:00:15.1]} 38... Kc5 {[%clk 0:00:57.8]}
39. h3 {[%clk 0:00:12.7]} 39... h5 {[%clk 0:00:51.7]} 40. Ne2 {[%clk 0:00:12.5]}
40... Kb4 {[%clk 0:00:49.1]} 41. h4 {[%clk 0:00:09.4]} 41... Kxa4 {[%clk
0:00:47]} 42. bxc6 {[%clk 0:00:09.5]} 42... bxc6 {[%clk 0:00:47.9]} 43. Ng1
{[%clk 0:00:10]} 43... Nc5+ {[%clk 0:00:29]} 44. Kd4 {[%clk 0:00:06.9]} 44...
Ne4 {[%clk 0:00:25.5]} 45. Nf3 {[%clk 0:00:05.9]} 45... Nxg3 {[%clk 0:00:25.8]}
46. Ne5 {[%clk 0:00:06.2]} 46... c5+ {[%clk 0:00:18.3]} 47. Kd3 {[%clk
0:00:05.6]} 47... b5 {[%clk 0:00:14.8]} 48. cxb5 {[%clk 0:00:04.3]} 48... Kxb5
{[%clk 0:00:15.7]} 49. Nxg6 {[%clk 0:00:04.3]} 49... c4+ {[%clk 0:00:14.7]} 50.
Kd4 {[%clk 0:00:01.9]} 50... Kb4 {[%clk 0:00:12.5]} 0-1

[Event "Late-Titled-Tuesday-Blitz-April-30-2024"]
[Site "Chess.com"]
[Date "2024.04.30"]
[Round "8"]
[White "IlanSchnaider"]
[Black "mbojan"]
[Result "0-1"]
[WhiteElo "2740"]
[BlackElo "2943"]
[TimeControl "180+1"]
[EndTime "15:28:49 PDT"]
[Termination "mbojan won by checkmate"]

1. e4 {[%clk 0:03:00.9]} 1... a6 {[%clk 0:03:00.9]} 2. d4 {[%clk 0:03:00.2]}
2... e6 {[%clk 0:03:00.2]} 3. Nf3 {[%clk 0:03:00]} 3... d5 {[%clk 0:03:00.6]} 4.
Bd3 {[%clk 0:03:00.6]} 4... dxe4 {[%clk 0:03:00.6]} 5. Bxe4 {[%clk 0:03:01]}
5... Nf6 {[%clk 0:03:01.5]} 6. Bd3 {[%clk 0:03:01.5]} 6... c5 {[%clk 0:03:02.2]}
7. Be3 {[%clk 0:02:59.2]} 7... Nbd7 {[%clk 0:03:02.3]} 8. O-O {[%clk 0:02:59.1]}
8... cxd4 {[%clk 0:03:01.4]} 9. Bxd4 {[%clk 0:02:59.6]} 9... Bc5 {[%clk
0:03:01.2]} 10. Bc3 {[%clk 0:02:47.3]} 10... b5 {[%clk 0:02:55.9]} 11. Nbd2
{[%clk 0:02:31.7]} 11... b4 {[%clk 0:02:46.7]} 12. Bxf6 {[%clk 0:02:29.8]} 12...
Nxf6 {[%clk 0:02:47.6]} 13. Ne4 {[%clk 0:02:18.5]} 13... Be7 {[%clk 0:02:47.6]}
14. Ne5 {[%clk 0:01:57.4]} 14... Bb7 {[%clk 0:02:40.7]} 15. Ng5 {[%clk
0:01:10.6]} 15... Qd5 {[%clk 0:02:15.8]} 16. Ngf3 {[%clk 0:01:02.9]} 16... O-O
{[%clk 0:02:11.6]} 17. Qe2 {[%clk 0:01:02.8]} 17... Qc5 {[%clk 0:01:28.3]} 18.
Rad1 {[%clk 0:01:01.7]} 18... a5 {[%clk 0:01:28.2]} 19. Ng5 {[%clk 0:00:57.6]}
19... h6 {[%clk 0:01:18]} 20. Ngf3 {[%clk 0:00:30.3]} 20... Rad8 {[%clk
0:01:11.1]} 21. Rfe1 {[%clk 0:00:29.9]} 21... Bd6 {[%clk 0:01:07.5]} 22. h3
{[%clk 0:00:24.6]} 22... Bb8 {[%clk 0:01:06.2]} 23. Bc4 {[%clk 0:00:13]} 23...
Nd5 {[%clk 0:00:39.3]} 24. Bxd5 {[%clk 0:00:03.1]} 24... Bxd5 {[%clk 0:00:40.2]}
25. Nd3 {[%clk 0:00:03.1]} 25... Qc7 {[%clk 0:00:40]} 26. g3 {[%clk 0:00:02.1]}
26... Ba8 {[%clk 0:00:36.2]} 27. Kg2 {[%clk 0:00:01.5]} 27... Rd5 {[%clk
0:00:33.8]} 28. Kh2 {[%clk 0:00:01.8]} 28... Qb7 {[%clk 0:00:31.3]} 29. Nh4
{[%clk 0:00:01.3]} 29... Rf5 {[%clk 0:00:27.9]} 30. f3 {[%clk 0:00:01]} 30...
Rh5 {[%clk 0:00:25.3]} 31. Ng2 {[%clk 0:00:01.3]} 31... Qxf3 {[%clk 0:00:23.8]}
32. Qxf3 {[%clk 0:00:02.2]} 32... Bxf3 {[%clk 0:00:24.3]} 33. Rd2 {[%clk
0:00:03.1]} 33... Rg5 {[%clk 0:00:23.1]} 34. Ndf4 {[%clk 0:00:02.9]} 34... Bxg2
{[%clk 0:00:22.1]} 35. Rxg2 {[%clk 0:00:03.2]} 35... Bxf4 {[%clk 0:00:22.4]} 36.
gxf4 {[%clk 0:00:04.1]} 36... Rxg2+ {[%clk 0:00:23]} 37. Kxg2 {[%clk 0:00:05]}
37... Rd8 {[%clk 0:00:23.4]} 38. Re2 {[%clk 0:00:04.2]} 38... Rd5 {[%clk
0:00:22.3]} 39. Kf3 {[%clk 0:00:04.4]} 39... Kf8 {[%clk 0:00:23]} 40. c3 {[%clk
0:00:04.6]} 40... bxc3 {[%clk 0:00:22.9]} 41. bxc3 {[%clk 0:00:05.5]} 41... Rd3+
{[%clk 0:00:23.5]} 42. Re3 {[%clk 0:00:04.3]} 42... Rxe3+ {[%clk 0:00:23.4]} 43.
Kxe3 {[%clk 0:00:05.2]} 43... Ke7 {[%clk 0:00:23.7]} 44. Kd4 {[%clk 0:00:06]}
44... Kd6 {[%clk 0:00:24.4]} 45. Kc4 {[%clk 0:00:06.6]} 45... Kc6 {[%clk
0:00:24.8]} 46. a4 {[%clk 0:00:05.6]} 46... g5 {[%clk 0:00:23.4]} 47. fxg5
{[%clk 0:00:02.4]} 47... hxg5 {[%clk 0:00:24.3]} 48. Kd4 {[%clk 0:00:02.8]}
48... f5 {[%clk 0:00:20.7]} 49. Ke5 {[%clk 0:00:01.9]} 49... f4 {[%clk
0:00:19.6]} 50. Ke4 {[%clk 0:00:02.6]} 50... Kc5 {[%clk 0:00:19.8]} 51. h4
{[%clk 0:00:01.9]} 51... gxh4 {[%clk 0:00:19.8]} 52. Kxf4 {[%clk 0:00:02.5]}
52... Kc4 {[%clk 0:00:20.5]} 53. Kg4 {[%clk 0:00:03.1]} 53... Kxc3 {[%clk
0:00:21.4]} 54. Kxh4 {[%clk 0:00:04]} 54... Kb4 {[%clk 0:00:22.3]} 55. Kg4
{[%clk 0:00:04.9]} 55... Kxa4 {[%clk 0:00:23.2]} 56. Kf4 {[%clk 0:00:05.6]}
56... Kb3 {[%clk 0:00:24.1]} 57. Ke5 {[%clk 0:00:06.5]} 57... a4 {[%clk
0:00:25]} 58. Kxe6 {[%clk 0:00:07.4]} 58... a3 {[%clk 0:00:25.9]} 59. Ke5 {[%clk
0:00:08.3]} 59... a2 {[%clk 0:00:26.8]} 60. Ke4 {[%clk 0:00:09.2]} 60... a1=Q
{[%clk 0:00:27.7]} 61. Kd3 {[%clk 0:00:09.3]} 61... Qc3+ {[%clk 0:00:28.6]} 62.
Ke2 {[%clk 0:00:09.8]} 62... Qd4 {[%clk 0:00:29]} 63. Kf3 {[%clk 0:00:10.3]}
63... Qe5 {[%clk 0:00:29.5]} 64. Kg4 {[%clk 0:00:10.7]} 64... Qf6 {[%clk
0:00:30]} 65. Kg3 {[%clk 0:00:11.3]} 65... Qf5 {[%clk 0:00:30.6]} 66. Kh4 {[%clk
0:00:11.6]} 66... Qg6 {[%clk 0:00:30.6]} 67. Kh3 {[%clk 0:00:12.2]} 67... Kc4
{[%clk 0:00:31.4]} 68. Kh2 {[%clk 0:00:12.7]} 68... Kd5 {[%clk 0:00:32.3]} 69.
Kh3 {[%clk 0:00:13.3]} 69... Ke4 {[%clk 0:00:33.2]} 70. Kh2 {[%clk 0:00:14]}
70... Kf3 {[%clk 0:00:34.1]} 71. Kh1 {[%clk 0:00:13.8]} 71... Qg2# {[%clk
0:00:34.3]} 0-1

[Event "Late-Titled-Tuesday-Blitz-April-30-2024"]
[Site "Chess.com"]
[Date "2024.04.30"]
[Round "8"]
[White "Durarbayli"]
[Black "grandmastergauri"]
[Result "1-0"]
[WhiteElo "2920"]
[BlackElo "2733"]
[TimeControl "180+1"]
[EndTime "15:28:49 PDT"]
[Termination "Durarbayli won by resignation"]

1. e4 {[%clk 0:03:00.9]} 1... e5 {[%clk 0:02:59.7]} 2. Nf3 {[%clk 0:03:00.9]}
2... Nc6 {[%clk 0:03:00.1]} 3. d4 {[%clk 0:03:01.3]} 3... exd4 {[%clk
0:03:00.1]} 4. Nxd4 {[%clk 0:03:02.2]} 4... Bc5 {[%clk 0:02:53.1]} 5. Nb3 {[%clk
0:03:02.2]} 5... Bb6 {[%clk 0:02:52.5]} 6. Qe2 {[%clk 0:03:02.7]} 6... a5 {[%clk
0:02:47]} 7. a4 {[%clk 0:03:01.4]} 7... Qe7 {[%clk 0:02:37.4]} 8. Nc3 {[%clk
0:03:01]} 8... Nf6 {[%clk 0:02:37.2]} 9. Bg5 {[%clk 0:02:57.7]} 9... Nb4 {[%clk
0:02:13.4]} 10. e5 {[%clk 0:02:03.3]} 10... h6 {[%clk 0:02:12.4]} 11. Bh4 {[%clk
0:01:56.5]} 11... g5 {[%clk 0:02:11.2]} 12. Bg3 {[%clk 0:01:56.8]} 12... Nfd5
{[%clk 0:01:55]} 13. Nxd5 {[%clk 0:01:56.6]} 13... Nxd5 {[%clk 0:01:54.6]} 14.
O-O-O {[%clk 0:01:57.5]} 14... Nb4 {[%clk 0:01:51.6]} 15. h4 {[%clk 0:01:51.5]}
15... g4 {[%clk 0:01:50.1]} 16. h5 {[%clk 0:01:24.6]} 16... d5 {[%clk
0:01:08.8]} 17. exd6 {[%clk 0:01:21.3]} 17... Qxe2 {[%clk 0:01:09.4]} 18. Bxe2
{[%clk 0:01:21.7]} 18... cxd6 {[%clk 0:01:05.8]} 19. Rhe1 {[%clk 0:01:09.4]}
19... O-O {[%clk 0:00:54.7]} 20. Rxd6 {[%clk 0:00:57.4]} 20... Bc7 {[%clk
0:00:54.4]} 21. Rxh6 {[%clk 0:00:48.8]} 21... Bxg3 {[%clk 0:00:54.3]} 22. fxg3
{[%clk 0:00:49]} 22... Bf5 {[%clk 0:00:54.7]} 23. c3 {[%clk 0:00:27.9]} 23...
Nc6 {[%clk 0:00:34.9]} 24. Rf6 {[%clk 0:00:24.9]} 24... Bh7 {[%clk 0:00:24.6]}
25. Bxg4 {[%clk 0:00:24.3]} 25... Rfe8 {[%clk 0:00:25.3]} 26. Rxe8+ {[%clk
0:00:16]} 26... Rxe8 {[%clk 0:00:26.2]} 27. Kd2 {[%clk 0:00:15.9]} 27... Ne5
{[%clk 0:00:26.2]} 28. Be2 {[%clk 0:00:16.5]} 28... Rd8+ {[%clk 0:00:22.1]} 29.
Nd4 {[%clk 0:00:16.3]} 29... Kg7 {[%clk 0:00:17.1]} 30. Rf4 {[%clk 0:00:16.3]}
30... Nc6 {[%clk 0:00:12.1]} 31. g4 {[%clk 0:00:13.9]} 31... Ne7 {[%clk
0:00:11.8]} 32. g5 {[%clk 0:00:13.5]} 32... Nd5 {[%clk 0:00:11.8]} 33. h6+
{[%clk 0:00:14.1]} 33... Kg8 {[%clk 0:00:11.8]} 34. Rf1 {[%clk 0:00:13.4]} 34...
Bg6 {[%clk 0:00:12]} 35. Bd3 {[%clk 0:00:13.1]} 35... Bh5 {[%clk 0:00:10.8]} 36.
Rf5 {[%clk 0:00:09.9]} 36... Bg6 {[%clk 0:00:08.2]} 37. Re5 {[%clk 0:00:10.5]}
37... Bh5 {[%clk 0:00:07.9]} 38. Be4 {[%clk 0:00:11]} 38... Nf4 {[%clk
0:00:04.5]} 39. g3 {[%clk 0:00:11]} 39... Ng6 {[%clk 0:00:04]} 40. Bxg6 {[%clk
0:00:11.7]} 40... Bxg6 {[%clk 0:00:04.5]} 41. Rxa5 {[%clk 0:00:12.4]} 41... Rd7
{[%clk 0:00:03]} 42. Rb5 {[%clk 0:00:12.6]} 42... Kh7 {[%clk 0:00:02.7]} 43. a5
{[%clk 0:00:13.1]} 43... Be4 {[%clk 0:00:02.7]} 44. Rb6 {[%clk 0:00:13.6]} 44...
Rd5 {[%clk 0:00:02.4]} 45. Ke3 {[%clk 0:00:11.7]} 45... Bh1 {[%clk 0:00:02.2]}
46. Kf4 {[%clk 0:00:09.9]} 46... Rxa5 {[%clk 0:00:02.1]} 47. Rf6 {[%clk
0:00:09.4]} 47... Kg8 {[%clk 0:00:02]} 48. g6 {[%clk 0:00:09.6]} 48... fxg6
{[%clk 0:00:02.3]} 49. Rxg6+ {[%clk 0:00:10.5]} 49... Kh7 {[%clk 0:00:03.1]} 50.
Rf6 {[%clk 0:00:10.5]} 50... Ra1 {[%clk 0:00:03.8]} 51. Nf5 {[%clk 0:00:09.8]}
51... Rf1+ {[%clk 0:00:04.3]} 52. Kg5 {[%clk 0:00:10.4]} 52... Rg1 {[%clk
0:00:04.1]} 53. Rf7+ {[%clk 0:00:10.6]} 53... Kg8 {[%clk 0:00:04.3]} 54. Rg7+
{[%clk 0:00:10.5]} 54... Kh8 {[%clk 0:00:03.8]} 55. Rc7 {[%clk 0:00:08.9]} 55...
Be4 {[%clk 0:00:04.2]} 56. g4 {[%clk 0:00:08.7]} 56... Bxf5 {[%clk 0:00:04.3]}
57. Kxf5 {[%clk 0:00:08.7]} 57... Kg8 {[%clk 0:00:02.9]} 58. g5 {[%clk
0:00:08.4]} 58... Kf8 {[%clk 0:00:02.3]} 59. Kg6 {[%clk 0:00:08.6]} 1-0